bitfinex/quotes_ETHUSD_20260110
["timestamp","ask_amount","ask_price","bid_price","bid_amount"]
[1768021209259,0.37589688,3080.2,3079.7,3.24705456]
[1768021210607,0.00080648,3080.2,3079.8,0.92739028]
[1768021214469,0.00080648,3080.2,3079.9,0.92739028]
[1768021214668,0.69049887,3080.5,3080.1,0.92739028]
[1768021214873,0.69049887,3080.5,3080.2,0.255]
[1768021215062,0.69049887,3080.5,3080.2,1.18239028]
[1768021216286,0.04056076,3080.6,3080.2,1.18239028]
[1768021216593,0.04056076,3080.6,3080.3,0.92739028]
[1768021216802,6.44,3080.7,3080.3,0.92739028]
[1768021219315,6.44,3080.7,3080.4,0.92739028]
[1768021219697,6.44,3080.7,3080.3,3.24642412]
[1768021219698,2.336,3080.7,3080.3,3.24642412]
[1768021219907,1.29134712,3080.7,3080.3,3.24642412]
[1768021220716,1.29134712,3080.7,3080.4,0.92739028]
[1768021220924,1.29134712,3080.7,3080.4,0.92617712]
[1768021225299,1.29134712,3080.7,3080.5,0.92739028]
[1768021225896,0.95408308,3080.7,3080.3,0.92739028]
[1768021226077,0.00080584,3080.8,3080.7,0.92739028]
[1768021226275,0.41770926,3081.4,3080.7,0.255]
[1768021229112,0.0414057,3081.4,3080.7,1.18239028]
[1768021230095,0.0414057,3081.4,3080.8,0.92739028]
[1768021230293,0.001,3081.1,3080.8,0.92739028]
[1768021241523,0.00084494,3081.4,3080.8,3.24586297]
[1768021241886,0.3771485,3081.4,3080.8,3.24586297]
[1768021242381,0.00084494,3081.4,3080.9,0.90102145]
[1768021243792,0.00084494,3081.4,3081.1,0.90102145]
[1768021244117,0.0008076,3081.7,3081.2,0.255]
[1768021244317,0.04136836,3081.7,3081.2,0.255]
[1768021245921,0.04136836,3081.7,3081.2,3.50039046]
[1768021245922,0.0008076,3081.7,3081.2,3.50039046]
[1768021246219,0.0008076,3081.7,3081.2,7.83848642]
[1768021247486,0.0008076,3081.7,3081.2,0.255]
[1768021247711,0.04136836,3081.7,3081.2,0.255]
[1768021249225,0.04136836,3081.7,3081.3,0.90102145]
[1768021249421,0.0008076,3081.7,3081.3,0.90102145]
[1768021251701,0.04136836,3081.7,3081.3,0.90102145]
[1768021251901,0.0008076,3081.7,3081.3,0.90102145]
[1768021254009,0.001,3081.4,3081.3,0.90102145]
[1768021254210,0.0008076,3081.7,3081.2,7.83856353]
[1768021254628,0.37630356,3081.6,3081.2,0.255]
[1768021254930,0.0008076,3081.7,3081.2,1.2033926]
[1768021255798,0.0008076,3081.7,3081.3,0.9483926]
[1768021261944,0.0008076,3081.7,3081.4,0.9483926]
[1768021263318,0.0008076,3081.7,3081.5,0.99072159]
[1768021264246,0.0008076,3081.7,3081.4,0.99072159]
[1768021278162,0.03912187,3081.9,3081.4,0.99072159]
[1768021278362,0.36025365,3082.2,3081.4,0.99072159]
[1768021278670,0.83339596,3082.1,3081.4,0.99072159]
[1768021281269,0.03912324,3082.1,3081.4,0.99072159]
[1768021282267,0.39937689,3082.1,3081.3,0.00080768]
[1768021282468,0.39937689,3082.1,3081.3,0.99152927]
[1768021285469,0.39937689,3082.1,3081.3,0.00080768]
[1768021285769,0.39937689,3082.1,3081.3,0.99152927]
[1768021286967,0.9,3081.8,3081.3,0.99152927]
[1768021287271,0.39937689,3082.1,3081.3,0.99152927]
[1768021287272,0.03912324,3081.7,3081.4,0.255]
[1768021287471,0.03912324,3081.9,3081.4,0.255]
[1768021289475,0.03912324,3081.9,3081.6,0.002]
[1768021293201,0.36025365,3082.3,3081.6,0.002]
[1768021293391,0.03912324,3082.2,3081.6,0.002]
[1768021293592,3.28363233,3082.2,3081.6,0.002]
[1768021293901,0.9,3082.0,3081.6,0.002]
[1768021296400,0.03912324,3081.9,3081.6,0.002]
[1768021298726,0.45750085,3081.9,3081.6,0.002]
[1768021299128,3.70225522,3081.9,3081.6,0.002]
[1768021301434,4.06250887,3081.9,3081.6,0.002]
[1768021301635,3.70225522,3081.9,3081.6,0.002]
[1768021312362,3.70225522,3081.9,3081.6,0.00081164]
[1768021312564,0.78469155,3081.8,3081.6,0.00081164]
[1768021313075,0.03912324,3081.7,3081.6,0.00081164]
[1768021313969,0.03912324,3081.7,3081.4,0.255]
[1768021314172,0.03912324,3081.7,3081.4,0.16693941]
[1768021314677,3.28411183,3081.7,3081.4,0.16693941]
[1768021314964,0.40688034,3081.6,3081.4,0.16693941]
[1768021315268,0.03912324,3081.5,3081.4,0.16693941]
[1768021321596,0.03912324,3081.5,3080.6,0.95908392]
[1768021321597,0.36109943,3081.4,3080.6,0.95908392]
[1768021321773,4.33853059,3081.0,3080.7,0.255]
[1768021321956,0.43385306,3080.9,3080.7,0.255]
[1768021323190,4.21774751,3081.1,3080.7,0.255]
[1768021324694,4.25687075,3081.1,3080.7,0.255]
[1768021325363,4.25687075,3081.1,3080.3,0.96108392]
[1768021325364,4.33853059,3081.0,3080.3,0.96108392]
[1768021325559,0.95403563,3080.9,3080.5,0.255]
[1768021326201,0.95403563,3080.9,3080.6,0.002]
[1768021326400,0.52925662,3080.8,3080.6,0.002]
[1768021326607,4.20005114,3080.7,3080.5,0.10556665]
[1768021327368,4.20005114,3080.7,3080.3,0.002]
[1768021327620,0.95403563,3080.6,3080.5,0.255]
[1768021328307,4.7292415,3080.8,3080.5,0.255]
[1768021328665,1.48329225,3080.8,3080.5,0.255]
[1768021329103,0.52925662,3080.8,3080.5,0.255]
[1768021329483,1.48329225,3080.8,3080.5,0.255]
[1768021330509,0.03912324,3080.7,3080.5,0.255]
[1768021330720,3.24558638,3081.2,3080.6,0.99418727]
[1768021331016,3.24558638,3081.2,3080.5,0.255]
[1768021331192,4.81525095,3081.2,3080.5,0.255]
[1768021331798,0.9,3080.9,3080.5,1.24918727]
[1768021332398,0.9,3080.9,3080.6,0.99418727]
[1768021342541,0.9,3080.9,3080.5,0.255]
[1768021343351,0.9,3080.9,3080.5,1.24918727]
[1768021346947,0.9,3080.9,3080.5,0.255]
[1768021347446,1.31456176,3080.9,3080.5,0.255]
[1768021349520,1.31456176,3080.9,3080.8,0.002]
[1768021357336,1.31456176,3080.9,3080.5,0.257]
[1768021361343,0.9,3080.9,3080.5,0.257]
[1768021361553,0.9,3080.9,3080.8,0.002]
[1768021361751,0.9,3080.9,3080.5,0.257]
[1768021367186,5.32157501,3080.7,3080.0,0.002]
[1768021367339,5.32157501,3080.7,3079.8,0.00080656]
[1768021367340,0.98082317,3080.5,3080.1,0.20473214]
[1768021367737,0.98082317,3080.5,3080.1,0.17779635]
[1768021369291,0.98082317,3080.4,3080.1,0.17779635]
[1768021369480,0.4227152,3080.3,3080.1,0.17779635]
[1768021370498,0.4227152,3080.3,3080.1,0.15030471]
[1768021370652,4.2272061,3080.4,3080.1,0.11250039]
[1768021370856,4.2272061,3080.4,3080.1,0.0507718]
[1768021371161,4.2272061,3080.4,3080.1,0.00264696]
[1768021371363,0.0507718,3080.1,3079.8,0.00080656]
[1768021371569,0.0507718,3080.1,3079.9,0.255]
[1768021373488,0.0507718,3080.1,3080.0,0.002]
[1768021379810,0.04890351,3080.1,3080.0,0.002]
[1768021391878,0.9549975,3080.3,3080.0,0.002]
[1768021392080,0.42013695,3080.3,3080.0,0.002]
[1768021392306,0.9549975,3080.5,3080.0,0.002]
[1768021392607,4.20124896,3080.5,3080.0,0.002]
[1768021393110,0.9,3080.2,3080.0,0.002]
[1768021415734,3.24638057,3080.4,3080.0,0.002]
[1768021416030,3.66650444,3080.4,3080.0,0.002]
[1768021416948,0.96012784,3080.3,3080.0,0.002]
[1768021417453,3.24654243,3080.2,3080.0,0.002]
[1768021418915,4.20660947,3080.3,3080.0,0.002]
[1768021419115,1.22138657,3080.2,3080.0,0.002]
[1768021421012,0.9,3080.1,3080.0,0.002]
[1768021470830,0.42012387,3080.4,3080.0,0.95115075]
[1768021471031,3.24605857,3080.7,3080.0,0.95115075]
[1768021471531,4.16670122,3080.8,3080.0,0.95115075]
[1768021471737,3.2467395,3080.8,3080.0,0.95115075]
[1768021471923,4.16670122,3080.8,3080.0,0.95115075]
[1768021472123,0.41667012,3080.7,3080.0,0.95115075]
[1768021473034,0.00080592,3080.8,3080.0,0.95115075]
[1768021473222,0.00080592,3080.8,3080.1,0.99287852]
[1768021475738,0.001,3080.5,3080.2,0.99287852]
[1768021476623,0.9,3080.4,3080.2,0.99287852]
[1768021476820,0.00080592,3080.8,3080.5,0.99287852]
[1768021477025,0.00080592,3080.8,3080.6,0.255]
[1768021478521,0.25499999,3080.7,3080.4,0.03990383]
[1768021478737,0.97277506,3080.6,3080.5,0.255]
[1768021479750,3.50109352,3080.7,3080.5,0.21664181]
[1768021479914,0.35018994,3080.6,3080.5,0.21664181]
[1768021481131,0.35018994,3080.6,3080.4,0.0009423]
[1768021481445,0.35018994,3080.6,3080.2,0.255]
[1768021481446,0.97277506,3080.5,3080.2,0.255]
[1768021481853,3.59631957,3080.6,3080.2,0.255]
[1768021482046,0.80701322,3080.5,3080.2,0.255]
[1768021482453,0.97277506,3080.4,3080.2,0.255]
[1768021482952,4.05325455,3080.5,3080.2,0.255]
[1768021485449,0.80701322,3080.5,3080.2,0.255]
[1768021485754,0.35018994,3080.6,3080.2,0.255]
[1768021485923,0.35018994,3080.6,3080.2,1.24787852]
[1768021486852,3.59634387,3080.6,3080.2,1.24787852]
[1768021487434,3.59634387,3080.6,3080.2,0.255]
[1768021487624,0.35018994,3080.6,3080.2,0.255]
[1768021487824,0.35962496,3080.5,3080.2,0.255]
[1768021488350,0.35018994,3080.6,3080.5,0.002]
[1768021491258,3.24676194,3080.8,3080.5,0.002]
[1768021491259,0.00080592,3080.8,3080.5,0.002]
[1768021491454,0.9,3080.6,3080.5,0.002]
[1768021498636,0.9,3080.6,3080.5,0.95907573]
[1768021500062,0.9,3080.6,3080.5,0.002]
[1768021502063,0.9,3080.6,3080.5,0.95907573]
[1768021502573,0.83763144,3080.6,3080.5,0.95907573]
[1768021510378,0.00080592,3080.8,3080.6,0.94075554]
[1768021510580,0.00080592,3080.8,3080.7,1.19575554]
[1768021510951,0.00080592,3080.8,3080.7,0.255]
[1768021511174,0.00080592,3080.8,3080.7,1.19575554]
[1768021511376,0.00084578,3081.4,3080.7,1.19575554]
[1768021511554,0.00084578,3081.4,3080.9,4.34228601]
[1768021511762,0.00084578,3081.4,3080.7,1.19575554]
[1768021511763,0.00084578,3081.4,3080.7,5.53804155]
[1768021512087,0.00084578,3081.4,3080.7,1.19575554]
[1768021512801,0.93295879,3081.4,3080.7,1.19575554]
[1768021514676,4.1782877,3081.4,3080.7,1.19575554]
[1768021521099,0.93295879,3081.4,3080.7,1.19575554]
[1768021522845,0.001,3081.1,3080.7,1.19575554]
[1768021525674,0.001,3081.1,3080.7,0.255]
[1768021526003,0.001,3081.1,3080.7,1.19575554]
[1768021528822,0.001,3081.1,3080.8,0.94075554]
[1768021540943,0.001,3081.1,3080.7,0.255]
[1768021543910,0.001,3081.1,3080.7,1.21612682]
[1768021545815,0.001,3080.8,3080.7,1.21612682]
[1768021546017,0.001,3081.1,3080.7,0.255]
[1768021548649,0.001,3081.1,3080.7,1.21612682]
[1768021554563,0.001,3081.1,3080.8,0.93492163]
[1768021561776,0.001,3081.1,3080.7,0.255]
[1768021568267,0.001,3081.1,3080.7,1.22249697]
[1768021570348,0.001,3080.8,3080.7,1.22249697]
[1768021570557,0.001,3081.1,3080.7,0.255]
[1768021575402,0.001,3081.1,3080.7,1.22249697]
[1768021575975,0.001,3081.1,3080.8,0.96749697]
[1768021580580,0.00084578,3081.4,3081.1,0.96749697]
[1768021580785,0.00080768,3081.7,3081.4,0.96749697]
[1768021605814,0.00080768,3081.7,3081.4,4.21277345]
[1768021606109,0.00080768,3081.7,3081.4,0.96749697]
[1768021609408,0.00080768,3081.7,3081.5,0.91622385]
[1768021614519,0.00080768,3081.7,3081.2,3.50042448]
[1768021614809,0.00080768,3081.7,3081.2,4.48880908]
[1768021615014,0.00080768,3081.7,3081.3,0.9883846]
[1768021616818,0.00080768,3081.7,3081.4,0.9883846]
[1768021620438,0.00080768,3081.7,3081.5,0.9883846]
[1768021624098,0.001,3082.5,3081.7,0.97495626]
[1768021624324,0.97115751,3082.9,3082.2,4.33745043]
[1768021624501,0.97115751,3082.9,3082.3,0.255]
[1768021628715,0.001,3082.6,3082.3,0.255]
[1768021632013,0.001,3082.6,3082.0,0.97495626]
[1768021632212,0.001,3082.6,3082.4,0.255]
[1768021646912,0.001,3082.6,3082.5,0.97495626]
[1768021647409,0.001,3082.6,3082.4,0.255]
[1768021648236,0.97115751,3083.2,3082.4,0.255]
[1768021650438,0.000806,3083.3,3082.5,0.97495626]
[1768021650626,0.000806,3083.3,3082.6,0.97495626]
[1768021651545,0.001,3083.0,3082.6,0.97495626]
[1768021657145,0.001,3083.0,3082.4,0.255]
[1768021657146,0.001,3083.0,3082.4,1.18149912]
[1768021657341,0.94536129,3083.0,3082.4,0.255]
[1768021663859,0.001,3082.7,3082.4,0.255]
[1768021667557,0.001,3082.7,3082.4,1.18149912]
[1768021668022,0.001,3082.7,3082.4,0.255]
[1768021668219,0.001,3082.7,3082.4,1.18149912]
[1768021682667,0.94908425,3082.7,3082.5,0.255]
[1768021683062,0.94908425,3082.7,3082.5,0.25377661]
[1768021683464,0.30252995,3082.7,3082.5,0.25377661]
[1768021683667,0.30252995,3082.7,3082.5,0.25260102]
[1768021685369,0.001,3082.7,3082.5,0.25260102]
[1768021688075,0.001,3082.7,3082.1,0.99645109]
[1768021688262,0.001,3082.7,3082.2,1.25145109]
[1768021698058,0.001,3082.7,3082.2,0.255]
[1768021698261,0.001,3082.7,3082.5,0.001]
[1768021699385,0.6,3082.6,3082.5,0.001]
[1768021699561,0.001,3082.7,3082.5,0.001]
[1768021702174,0.32548468,3082.7,3082.5,0.001]
[1768021704483,0.6,3082.6,3082.5,0.001]
[1768021713987,0.6,3082.6,3082.5,0.94512162]
[1768021714308,0.59800001,3082.6,3082.5,0.94512162]
[1768021717501,0.53742842,3082.6,3082.5,0.94512162]
[1768021719003,0.53542843,3082.6,3082.5,0.94512162]
[1768021722702,0.001,3082.7,3082.5,0.94512162]
[1768021724311,0.001,3083.0,3082.7,0.94412162]
[1768021725319,0.001,3083.0,3082.9,0.94412162]
[1768021729327,0.000806,3083.3,3083.0,0.94412162]
[1768021732884,0.002806,3083.3,3083.0,0.94412162]
[1768021733086,0.002806,3083.3,3082.8,1.16239001]
[1768021735609,0.002806,3083.3,3082.9,0.90739001]
[1768021745826,0.002,3083.0,3082.9,0.90739001]
[1768021750743,0.002806,3083.3,3083.0,0.92020596]
[1768021758129,0.002806,3083.3,3082.8,0.255]
[1768021758434,0.002806,3083.3,3082.8,1.17520596]
[1768021768966,0.002,3083.0,3082.8,1.17520596]
[1768021778265,0.002806,3083.3,3082.8,1.17520596]
[1768021780374,0.002,3083.0,3082.8,1.17520596]
[1768021782990,0.002806,3083.3,3082.8,1.17520596]
[1768021784995,0.002806,3083.3,3082.9,0.91515749]
[1768021791999,0.002,3083.0,3082.9,0.91515749]
[1768021792200,0.002806,3083.3,3082.9,0.91515749]
[1768021797106,3.24346299,3083.9,3083.2,0.93038081]
[1768021797684,3.24346299,3083.9,3083.3,1.18538081]
[1768021798079,3.24346299,3083.9,3083.4,0.93038081]
[1768021798398,0.00080744,3083.9,3083.4,0.93038081]
[1768021798704,0.00080744,3083.9,3083.3,0.255]
[1768021798705,3.24350344,3083.9,3083.3,0.255]
[1768021798911,3.54503339,3083.9,3083.3,0.255]
[1768021799285,0.30152995,3083.8,3083.3,0.255]
[1768021800913,3.54431627,3083.8,3083.3,0.255]
[1768021801112,0.00080744,3083.9,3083.4,0.93038081]
[1768021802918,0.00080744,3083.9,3083.5,0.93038081]
[1768021803110,3.24402834,3084.5,3083.7,0.91636844]
[1768021803305,0.002,3084.5,3083.9,0.91636844]
[1768021810211,0.002,3084.5,3083.8,0.255]
[1768021810693,0.002,3084.5,3083.8,1.17136844]
[1768021812926,0.002,3084.5,3083.9,0.91636844]
[1768021815524,0.002,3084.2,3083.9,0.91636844]
[1768021816825,0.002,3084.2,3084.0,0.03242542]
[1768021817008,0.002,3084.5,3084.2,0.91636844]
[1768021818027,0.002,3084.5,3084.3,1.17136844]
[1768021820446,0.002,3084.5,3084.4,0.91636844]
[1768021827050,0.00280936,3084.8,3084.4,0.91636844]
[1768021827513,0.002,3084.5,3084.4,0.91636844]
[1768021848335,0.00280936,3084.8,3084.5,0.97382646]
[1768021848530,0.00280936,3084.8,3084.5,0.97261773]
[1768021877498,0.00280936,3084.8,3084.7,0.99241147]
[1768021877984,0.002,3085.1,3084.7,0.99241147]
[1768021878193,0.002,3085.1,3084.9,0.99241147]
[1768021919425,0.002,3085.1,3084.8,1.22282905]
[1768021924127,0.002,3085.1,3084.9,0.99062317]
[1768021950382,0.002,3085.1,3084.8,0.255]
[1768021955658,0.002,3085.1,3084.8,0.25377714]
[1768021956488,3.24338601,3085.1,3084.8,0.25377714]
[1768021958192,3.24338601,3085.1,3084.8,0.25257714]
[1768021959086,0.30273868,3085.0,3084.4,0.25580944]
[1768021959585,3.24338601,3085.1,3084.4,1.22767696]
[1768021960965,0.30273868,3085.0,3084.4,0.00080944]
[1768021963100,3.24159616,3084.9,3084.4,0.03323065]
[1768021963402,3.24159616,3084.9,3084.4,0.00080944]
[1768021963694,0.68074514,3085.1,3084.4,1.00509817]
[1768021963873,3.24344635,3085.1,3084.4,1.00509817]
[1768021964554,3.24344635,3085.1,3084.4,0.97267696]
[1768021965075,0.002,3085.1,3084.4,0.97267696]
[1768021965774,0.002,3085.1,3084.6,0.97186752]
[1768021966787,0.002,3084.8,3084.6,0.97186752]
[1768021967496,0.002,3084.8,3084.4,0.97267696]
[1768021971265,0.002,3084.8,3084.5,0.255]
[1768021972306,0.002,3084.8,3084.4,0.25580944]
[1768021972476,0.002,3084.8,3084.4,0.00080944]
[1768021975909,0.30273868,3084.7,3084.4,0.00080944]
[1768021976109,0.67881412,3084.6,3084.0,0.94977566]
[1768021978273,3.24201653,3084.5,3084.0,0.94977566]
[1768021978469,3.24201653,3084.5,3084.3,0.001]
[1768021978671,3.95828209,3084.5,3084.3,0.001]
[1768021983986,7.5030373,3084.5,3083.8,0.255]
[1768021984184,0.30273868,3084.4,3083.9,0.255]
[1768021985006,3.24222676,3084.3,3083.9,0.255]
[1768021988886,3.24222676,3084.3,3083.6,0.95075016]
[1768021989090,3.24222676,3084.3,3083.7,0.255]
[1768021989513,3.24222676,3084.3,3083.7,1.20575016]
[1768021990513,3.24222676,3084.3,3084.2,0.001]
[1768021990681,3.920926,3084.3,3083.7,1.20575016]
[1768021990876,3.24222676,3084.3,3083.7,1.20575016]
[1768022002629,3.24222676,3084.3,3084.0,0.001]
[1768022006344,6.48414445,3084.5,3084.0,0.001]
[1768022009530,3.24202695,3084.5,3084.0,0.001]
[1768022010608,3.24202695,3084.5,3084.0,0.95175016]
[1768022011338,0.64839673,3084.4,3084.0,0.95175016]
[1768022012135,3.8905302,3084.4,3084.0,0.95175016]
[1768022012330,3.24213347,3084.4,3084.0,0.95175016]
[1768022014209,0.002,3084.2,3084.0,0.95175016]
[1768022016039,0.002,3084.2,3084.0,0.001]
[1768022018368,0.002,3084.2,3083.9,0.9681919]
[1768022023541,0.002,3084.2,3083.7,0.255]
[1768022023839,0.91609437,3084.2,3083.5,0.00080752]
[1768022024008,0.91609437,3084.2,3083.5,0.25580752]
[1768022025249,6.48487402,3084.1,3083.5,0.25580752]
[1768022025425,0.74009684,3084.0,3083.5,0.25580752]
[1768022025946,0.6,3083.9,3083.5,0.25580752]
[1768022028145,3.84270511,3083.9,3083.5,0.25580752]
[1768022028523,3.84270511,3083.9,3083.5,1.22399942]
[1768022038853,0.002,3083.6,3083.5,1.22399942]
[1768022039447,3.24470511,3083.9,3083.5,1.22399942]
[1768022040881,0.002,3083.9,3083.5,1.22399942]
[1768022042228,0.002,3083.9,3083.6,0.93636686]
[1768022042857,0.002,3083.9,3083.8,0.93636686]
[1768022056354,0.002,3083.9,3083.6,0.91561912]
[1768022057981,0.002,3084.2,3083.8,0.91561912]
[1768022063574,0.002,3084.2,3083.9,0.03242647]
[1768022063765,0.002,3084.2,3083.6,0.91561912]
[1768022075357,0.002,3084.2,3083.9,0.001]
[1768022092399,0.002,3084.2,3083.9,0.03342647]
[1768022092700,0.002,3084.2,3083.9,0.98947657]
[1768022095805,0.002,3084.5,3084.1,0.9560501]
[1768022099307,0.002,3084.2,3084.1,0.9560501]
[1768022099475,0.002,3084.5,3084.1,0.9560501]
[1768022104198,0.002,3084.5,3084.2,0.03242331]
[1768022104398,0.002,3084.5,3084.1,0.9560501]
[1768022108384,0.9935951,3084.5,3084.0,0.255]
[1768022108583,0.002,3084.5,3084.0,0.255]
[1768022110683,0.002,3084.2,3084.0,0.255]
[1768022111624,0.002,3084.2,3083.9,0.001]
[1768022111829,0.002,3084.2,3084.0,0.255]
[1768022113338,0.9935951,3084.2,3084.0,0.255]
[1768022113508,0.002,3084.2,3084.0,0.255]
[1768022122221,0.002,3084.2,3084.0,1.17032853]
[1768022129950,0.002,3084.2,3084.1,0.9477529]
[1768022130840,0.002,3084.5,3084.1,0.9477529]
[1768022131151,0.002,3084.5,3084.1,0.03242437]
[1768022132649,0.002,3084.5,3084.0,1.17032853]
[1768022133640,0.002,3084.2,3084.0,1.17032853]
[1768022139752,0.002,3084.2,3084.1,0.91381286]
[1768022139959,0.002,3084.5,3084.1,0.91381286]
[1768022141267,0.002,3084.5,3084.0,0.255]
[1768022143378,0.002,3084.5,3084.0,1.16881286]
[1768022145574,0.002,3084.2,3084.0,1.16881286]
[1768022149380,0.002,3084.5,3084.1,0.91381286]
[1768022157156,3.95e-06,3084.5,3084.1,0.91381286]
[1768022161793,3.95e-06,3084.5,3084.0,0.255]
[1768022167207,0.90183173,3084.5,3084.0,0.255]
[1768022167502,0.90183173,3084.5,3083.9,0.001]
[1768022167805,0.90183173,3084.5,3084.0,0.255]
[1768022169305,0.90183173,3084.5,3084.3,0.001]
[1768022169494,0.90183173,3084.5,3084.0,0.255]
[1768022169803,0.90182778,3084.4,3084.0,0.255]
[1768022180809,0.90182778,3084.4,3084.3,0.001]
[1768022181008,0.90182778,3084.3,3084.0,0.255]
[1768022183412,3.2420973,3084.5,3084.0,0.255]
[1768022183619,4.14392508,3084.5,3084.0,0.255]
[1768022184186,0.90183173,3084.5,3084.0,0.255]
[1768022185418,3.95e-06,3084.5,3084.0,0.255]
[1768022185722,3.95e-06,3084.5,3084.0,1.20585973]
[1768022192821,3.95e-06,3084.5,3084.3,0.001]
[1768022193024,1.32860693,3084.5,3084.0,0.255]
[1768022193223,0.91230366,3084.5,3084.0,0.255]
[1768022193526,3.95e-06,3084.5,3084.0,0.255]
[1768022204445,3.95e-06,3084.5,3084.3,0.001]
[1768022204644,3.95e-06,3084.5,3084.0,0.255]
[1768022206656,3.95e-06,3084.5,3084.0,1.23734057]
[1768022207950,0.97297875,3084.4,3084.0,1.23734057]
[1768022214754,0.97297875,3084.4,3084.1,0.99397543]
[1768022217053,0.97297875,3084.4,3084.3,0.001]
[1768022217239,0.97297875,3084.4,3084.0,0.255]
[1768022220260,0.97297875,3084.4,3084.0,1.24897543]
[1768022220961,0.97297875,3084.4,3084.1,0.99397543]
[1768022223734,0.97297875,3084.4,3084.0,0.255]
[1768022224143,1.96898967,3084.4,3084.0,0.255]
[1768022227563,0.97297875,3084.4,3084.0,0.255]
[1768022228058,2.16588903,3084.4,3084.0,0.255]
[1768022228265,0.97297875,3084.4,3084.0,0.255]
[1768022228843,0.97297875,3084.4,3084.3,0.001]
[1768022229048,0.97297875,3084.4,3084.0,0.255]
[1768022232578,1.96898967,3084.4,3084.0,0.255]
[1768022232972,0.97297875,3084.4,3084.0,0.255]
[1768022233768,0.97297875,3084.4,3084.0,1.22835312]
[1768022240290,0.97297875,3084.4,3084.3,0.001]
[1768022240585,0.97297875,3084.4,3084.0,0.255]
[1768022245261,0.97297875,3084.4,3084.0,1.22835312]
[1768022251977,0.97297875,3084.4,3084.3,0.001]
[1768022252177,0.97297875,3084.4,3084.0,0.255]
[1768022257596,0.97297875,3084.4,3084.1,0.92975677]
[1768022263501,0.97297875,3084.4,3084.3,0.001]
[1768022263705,0.97297875,3084.4,3084.1,0.92975677]
[1768022275521,0.97297875,3084.4,3084.0,0.255]
[1768022282707,0.91999589,3084.3,3083.5,0.00080752]
[1768022282907,0.91999589,3084.3,3083.5,0.25580752]
[1768022283292,0.94828765,3084.1,3083.5,0.25580752]
[1768022284020,0.97308606,3084.0,3083.5,0.25580752]
[1768022284712,4.21568096,3084.0,3083.5,0.25580752]
[1768022285022,0.51639686,3083.9,3083.5,0.25580752]
[1768022285409,1.48953026,3083.9,3083.5,0.25580752]
[1768022285798,0.51639686,3083.9,3083.5,0.25580752]
[1768022286023,0.9731334,3083.8,3083.5,0.25580752]
[1768022287800,0.9731334,3083.8,3083.5,1.24471564]
[1768022292037,0.51639686,3083.9,3083.5,1.24471564]
[1768022292241,1.48953026,3083.9,3083.5,1.24471564]
[1768022297210,1.48953026,3083.9,3083.5,0.25580752]
[1768022298642,1.48953026,3083.9,3083.8,0.001]
[1768022315749,0.51639686,3083.9,3083.8,0.001]
[1768022316625,3.75904415,3083.9,3083.8,0.001]
[1768022326830,0.51639686,3083.9,3083.8,0.001]
[1768022332462,3.75904415,3083.9,3083.8,0.001]
[1768022339068,0.51639686,3083.9,3083.8,0.001]
[1768022339564,3.75904415,3083.9,3083.8,0.001]
[1768022340568,0.51639686,3083.9,3083.8,0.001]
[1768022352678,3.75904415,3083.9,3083.8,0.001]
[1768022359382,7.93833832,3083.9,3083.3,0.9731334]
[1768022359552,0.81312137,3083.8,3083.3,1.2281334]
[1768022359753,0.81312137,3083.8,3083.3,0.255]
[1768022362785,4.05591824,3083.8,3083.3,0.255]
[1768022362984,4.05591824,3083.8,3083.3,1.25436614]
[1768022363486,4.0366307,3083.8,3083.3,1.25436614]
[1768022365773,0.79383383,3083.8,3083.3,1.25436614]
[1768022366277,0.79383383,3083.8,3083.4,0.99936614]
[1768022367390,0.002,3083.5,3083.4,0.99936614]
[1768022389184,0.002,3083.8,3083.4,0.99936614]
[1768022391105,0.002,3083.5,3083.4,0.99936614]
[1768022392174,0.002,3083.5,3083.3,0.255]
[1768022396009,0.002,3083.8,3083.3,0.255]
[1768022398109,0.002,3083.8,3083.3,1.21148869]
[1768022403216,0.002,3083.5,3083.3,1.21148869]
[1768022409115,0.002,3083.8,3083.3,1.21148869]
[1768022415025,0.002,3083.5,3083.3,1.21148869]
[1768022416127,0.002,3083.8,3083.3,1.21148869]
[1768022418730,0.002,3083.8,3083.4,0.94574702]
[1768022418896,0.002,3083.8,3083.4,0.97817875]
[1768022420004,0.00080752,3083.9,3083.7,0.94574702]
[1768022420408,0.00080752,3083.9,3083.8,0.255]
[1768022490829,0.95963999,3083.9,3083.8,0.255]
[1768022491015,0.95764,3083.9,3083.8,0.255]
[1768022491609,3.26152109,3084.3,3083.8,0.255]
[1768022492129,4.22035356,3084.3,3083.8,0.255]
[1768022492718,0.97812001,3084.3,3083.8,0.255]
[1768022495438,0.01928754,3084.3,3083.8,0.255]
[1768022496116,1.0046198,3084.3,3083.8,0.255]
[1768022498754,3.95e-06,3084.5,3083.9,0.95886373]
[1768022499045,3.95e-06,3084.5,3084.1,0.95886373]
[1768022499211,0.01929149,3084.5,3083.9,0.95886373]
[1768022500201,3.95e-06,3084.5,3083.9,0.95886373]
[1768022500404,0.01929149,3084.5,3083.9,0.95886373]
[1768022501438,3.95e-06,3084.5,3083.9,0.95886373]
[1768022501641,0.01929149,3084.5,3083.9,0.95886373]
[1768022503645,3.95e-06,3084.5,3083.9,0.95886373]
[1768022505542,0.002,3084.2,3083.9,0.95886373]
[1768022506425,0.002,3084.2,3083.8,0.255]
[1768022506857,0.98733226,3084.2,3083.5,0.0008076]
[1768022507137,0.98533226,3084.0,3083.7,0.255]
[1768022507533,0.002,3084.2,3083.7,0.255]
[1768022507534,0.98733226,3084.2,3083.7,0.255]
[1768022511155,0.97661476,3084.1,3083.7,0.255]
[1768022517264,0.002,3083.9,3083.7,0.255]
[1768022522167,0.95732722,3083.8,3083.5,0.0008076]
[1768022522339,0.95732722,3083.8,3083.6,0.255]
[1768022522532,0.95732722,3083.7,3083.5,0.0008076]
[1768022522742,3.66298138,3083.8,3083.5,0.0008076]
[1768022523338,4.58192984,3083.8,3083.5,0.0008076]